Workbook

Sheet 조건부서식
A2: 문제: 성별이 '남' 이고, 지점명이 '명동' 인 행 전체를 채우기색 노랑, 빨간 글꼴 굵게 설정하시오.
B3: (if, and, or 중 알맞은 함수 사용)
A5: 가입자명 | B5: 성별 | C5: 가입년월일 | D5: 상품종류 | E5: 지점명 | F5: 월불입액 | G5: 납입시점 | H5: 연이율 | I5: 만기금액
A6: 송민규 | B6: 남 | C6: 2019-03-04 | D6: 청약예금 | E6: 명동 | F6: 120000 | G6: 월초 | H6: 0.03 | I6: 16811000
A7: 김선재 | B7: 남 | C7: 2017-01-26 | D7: 정기적금 | E7: 강남 | F7: 150000 | G7: 월말 | H7: 0.02 | I7: 19908000
A8: 이가영 | B8: 여 | C8: 2017-07-01 | D8: 정기적금 | E8: 여의도 | F8: 50000 | G8: 월초 | H8: 0.02 | I8: 6648000
A9: 민태희 | B9: 여 | C9: 2017-08-18 | D9: 청약예금 | E9: 여의도 | F9: 80000 | G9: 월초 | H9: 0.029 | I9: 11149000
A10: 김은창 | B10: 남 | C10: 2018-09-26 | D10: 청약저축 | E10: 명동 | F10: 100000 | G10: 월초 | H10: 0.028 | I10: 13863000
A11: 전호식 | B11: 여 | C11: 2017-12-22 | D11: 정기적금 | E11: 명동 | F11: 90000 | G11: 월초 | H11: 0.02 | I11: 11965000
A12: 김현주 | B12: 남 | C12: 2018-11-14 | D12: 정기적금 | E12: 여의도 | F12: 100000 | G12: 월초 | H12: 0.02 | I12: 13295000
A13: 조애라 | B13: 여 | C13: 2018-04-19 | D13: 정기적금 | E13: 합정 | F13: 120000 | G13: 월말 | H13: 0.02 | I13: 15927000
A14: 최규현 | B14: 남 | C14: 2018-11-29 | D14: 정기적금 | E14: 여의도 | F14: 250000 | G14: 월초 | H14: 0.02 | I14: 33236000
A15: 장진구 | B15: 남 | C15: 2019-01-04 | D15: 청약저축 | E15: 명동 | F15: 10000 | G15: 월말 | H15: 0.021 | I15: 1335000
A16: 김우석 | B16: 남 | C16: 2018-12-01 | D16: 정기적금 | E16: 합정 | F16: 120000 | G16: 월말 | H16: 0.02 | I16: 15927000
A18: 문제: 가입자명이 '김' 으로 시작하고, 상품종류가 '정기적금' 인 월불입액 만 연한녹색 채우기 색을 설정하시오.
B19: (left, and 함수 사용)
B20: *조건부 서식 '수식을 사용하여 서식을 지정할 셀 결정' 메뉴는 와일드 카드 사용 불가.
A23: 유툽 = 함수바라기
A24: 다음블로그 = http://blog.daum.net/comtc1004/

Sheet 3차원차트
B1: 성과 현황
B2: 부서 | C2: 첫째주 | D2: 둘째주 | E2: 셋째주 | F2: 넷째주
B3: 물류부 | C3: 92 | D3: 95 | E3: 98 | F3: 78
B4: 생산관리부 | C4: 59 | D4: 65 | E4: 87 | F4: 92
B5: 인사재무부 | C5: 95 | D5: 95 | E5: 85 | F5: 78
B6: 전산정보부 | C6: 70 | D6: 92 | E6: 57 | F6: 96

Sheet 세로막대형차트
A1: 관람 현황
A3: 공연이름 | B3: 10월 | C3: 11월 | D3: 12월
A4: 7080콘서트 | B4: 1250 | C4: 1250 | D4: 5420
A5: 피노키오 | B5: 2543 | C5: 251 | D5: 2541
A6: 아이돌대축제 | B6: 1251 | C6: 3541 | D6: 5235
A7: 요술친구 | B7: 2543 | C7: 2541 | D7: 2152
A8: 백설공주 | B8: 1245 | C8: 2354 | D8: 5254
A9: 헨리의모험 | B9: 2515 | C9: 2510 | D9: 1442
A10: 천사의노래 | B10: 5212 | C10: 2358 | D10: 2541
A11: 행복한우리집 | B11: 1254 | C11: 2510 | D11: 5841

Sheet 매크로 기본예제
A2: 납품현황
A3: 번호 | B3: 납품일자 | C3: 제품코드 | D3: 제품명 | E3: 납품단가 | F3: 납품수량 | G3: 금액 | H3: 세금 | I3: 세후금액
A4: 6 | B4: 40799 | C4: B-021 | D4: 볼펜 | E4: 250 | F4: 50 | G4: 71250 | H4: 4987.5 | I4: 66262.5
A5: 11 | B5: 40835 | C5: B-020 | D5: 볼펜 | E5: 320 | F5: 840 | G5: 84000 | H5: 5880 | I5: 78120
A6: 1 | B6: 40791 | C6: C-239 | D6: 색연필 | E6: 195 | F6: 160 | G6: 16000 | H6: 1120 | I6: 14880
A7: 14 | B7: 40826 | C7: C-235 | D7: 색연필 | E7: 150 | F7: 890 | G7: 106800 | H7: 7476 | I7: 99324
A8: 17 | B8: 40844 | C8: C-212 | D8: 색연필 | E8: 200 | F8: 90 | G8: 23400 | H8: 1638 | I8: 21762
A9: 3 | B9: 40807 | C9: A-541 | D9: 색종이 | E9: 125 | F9: 450 | G9: 76500 | H9: 5355 | I9: 71145
A10: 5 | B10: 40793 | C10: A-351 | D10: 색종이 | E10: 150 | F10: 570 | G10: 165750 | H10: 11602.5 | I10: 154147.5
A11: 9 | B11: 40787 | C11: C-555 | D11: 색종이 | E11: 230 | F11: 90 | G11: 13500 | H11: 945 | I11: 12555
A12: 13 | B12: 40825 | C12: C-525 | D12: 연필 | E12: 150 | F12: 370 | G12: 210900 | H12: 14763 | I12: 196137
A13: 23 | B13: 40873 | C13: C-521 | D13: 연필 | E13: 100 | F13: 820 | G13: 82000 | H13: 5740 | I13: 76260
A14: 4 | B14: 40799 | C14: J-251 | D14: 자 | E14: 100 | F14: 850 | G14: 90000 | H14: 6300 | I14: 83700
A15: 12 | B15: 40828 | C15: J-152 | D15: 자 | E15: 105 | F15: 270 | G15: 28350 | H15: 1984.5 | I15: 26365.5

Sheet 부분합 매크로
A1: 문제: 제품명 기준으로 금액과 세후금액의 합계를 계산하는 부분합 매크로를 생성하세요.
A2: 단추 매크로 버튼은 K3:L5 영역에 생성하세요.
A4: 번호 | B4: 납품일자 | C4: 제품코드 | D4: 제품명 | E4: 납품단가 | F4: 납품수량 | G4: 금액 | H4: 세금 | I4: 세후금액
A5: 6 | B5: 2011-09-13 | C5: B-021 | D5: 볼펜 | E5: 250 | F5: 50 | G5: 71250 | H5: 4987.5 | I5: 66262.5
A6: 7 | B6: 2011-09-26 | C6: K-210 | D6: 칼 | E6: 260 | F6: 80 | G6: 12000 | H6: 840 | I6: 11160
A7: 21 | B7: 2011-11-19 | C7: K-651 | D7: 칼 | E7: 350 | F7: 80 | G7: 20800 | H7: 1456 | I7: 19344
A8: 17 | B8: 2011-10-28 | C8: C-212 | D8: 색연필 | E8: 200 | F8: 90 | G8: 23400 | H8: 1638 | I8: 21762
A9: 9 | B9: 2011-09-01 | C9: C-555 | D9: 색종이 | E9: 230 | F9: 90 | G9: 13500 | H9: 945 | I9: 12555
A10: 1 | B10: 2011-09-05 | C10: C-239 | D10: 색연필 | E10: 195 | F10: 160 | G10: 16000 | H10: 1120 | I10: 14880
A11: 13 | B11: 2011-10-09 | C11: C-525 | D11: 연필 | E11: 150 | F11: 370 | G11: 210900 | H11: 14763 | I11: 196137
A12: 3 | B12: 2011-09-21 | C12: A-541 | D12: 색종이 | E12: 125 | F12: 450 | G12: 76500 | H12: 5355 | I12: 71145
A13: 20 | B13: 2011-11-10 | C13: C-332 | D13: 형관펜 | E13: 230 | F13: 480 | G13: 110400 | H13: 7728 | I13: 102672
A14: 8 | B14: 2011-09-27 | C14: Q-521 | D14: 테이프 | E14: 350 | F14: 560 | G14: 128800 | H14: 9016 | I14: 119784
A15: 22 | B15: 2011-11-21 | C15: Q-552 | D15: 테이프 | E15: 550 | F15: 780 | G15: 273000 | H15: 19110 | I15: 253890
A16: 23 | B16: 2011-11-26 | C16: C-521 | D16: 연필 | E16: 100 | F16: 820 | G16: 82000 | H16: 5740 | I16: 76260
A17: 11 | B17: 2011-10-19 | C17: B-020 | D17: 볼펜 | E17: 320 | F17: 840 | G17: 84000 | H17: 5880 | I17: 78120
A18: 4 | B18: 2011-09-13 | C18: J-251 | D18: 자 | E18: 100 | F18: 850 | G18: 90000 | H18: 6300 | I18: 83700
A19: 19 | B19: 2011-11-07 | C19: G-952 | D19: 지우개 | E19: 120 | F19: 870 | G19: 478500 | H19: 33495 | I19: 445005
A20: 14 | B20: 2011-10-10 | C20: C-235 | D20: 색연필 | E20: 150 | F20: 890 | G20: 106800 | H20: 7476 | I20: 99324
A21: 10 | B21: 2011-09-06 | C21: C-395 | D21: 형관펜 | E21: 260 | F21: 950 | G21: 209000 | H21: 14630 | I21: 194370
A22: 18 | B22: 2011-10-14 | C22: J-352 | D22: 자 | E22: 570 | F22: 980 | G22: 343000 | H22: 24010 | I22: 318990

Sheet 자동필터 매크로
A1: 문제: 지점명이 명동 이거나 합정인 자동필터 매크로를 생성하세요.
A2: 구름도형 매크로 버튼은 J3:K5영역에 위치 시키세요.
A4: 가입자명 | B4: 가입년월일 | C4: 상품종류 | D4: 지점명 | E4: 월불입액 | F4: 계약기간(월) | G4: 연이율 | H4: 만기금액
A5: 송민규 | B5: 2019-03-04 | C5: 청약예금 | D5: 명동 | E5: 120000 | F5: 120 | G5: 0.03 | H5: 16811000
A6: 김선재 | B6: 2017-01-26 | C6: 정기적금 | D6: 강남 | E6: 150000 | F6: 120 | G6: 0.02 | H6: 19908000
A7: 이가영 | B7: 2017-07-01 | C7: 정기적금 | D7: 여의도 | E7: 50000 | F7: 120 | G7: 0.02 | H7: 6648000
A8: 민태희 | B8: 2017-08-18 | C8: 청약예금 | D8: 여의도 | E8: 80000 | F8: 120 | G8: 0.029 | H8: 11149000
A9: 김은창 | B9: 2018-09-26 | C9: 청약저축 | D9: 명동 | E9: 100000 | F9: 120 | G9: 0.028 | H9: 13863000
A10: 전호식 | B10: 2017-12-22 | C10: 정기적금 | D10: 명동 | E10: 90000 | F10: 120 | G10: 0.02 | H10: 11965000
A11: 오현주 | B11: 2018-11-14 | C11: 정기적금 | D11: 여의도 | E11: 100000 | F11: 120 | G11: 0.02 | H11: 13295000
A12: 조애라 | B12: 2018-04-19 | C12: 정기적금 | D12: 합정 | E12: 120000 | F12: 120 | G12: 0.02 | H12: 15927000
A13: 장진구 | B13: 2019-01-04 | C13: 청약저축 | D13: 명동 | E13: 10000 | F13: 120 | G13: 0.021 | H13: 1335000
A14: 김우석 | B14: 2018-12-01 | C14: 정기적금 | D14: 합정 | E14: 120000 | F14: 120 | G14: 0.02 | H14: 15927000
A15: 진혜영 | B15: 2019-12-26 | C15: 청약저축 | D15: 명동 | E15: 100000 | F15: 120 | G15: 0.028 | H15: 13863000
A16: 이윤희 | B16: 2019-05-12 | C16: 청약예금 | D16: 합정 | E16: 50000 | F16: 120 | G16: 0.03 | H16: 6988000
A17: 정석현 | B17: 2018-04-10 | C17: 청약예금 | D17: 강남 | E17: 150000 | F17: 120 | G17: 0.03 | H17: 20962000
A18: 함성민 | B18: 2018-12-15 | C18: 청약예금 | D18: 여의도 | E18: 75000 | F18: 120 | G18: 0.029 | H18: 10427000
A19: 선주대 | B19: 2018-04-17 | C19: 정기적금 | D19: 강남 | E19: 120000 | F19: 120 | G19: 0.02 | H19: 15927000
A20: 우연희 | B20: 2018-12-10 | C20: 청약저축 | D20: 강남 | E20: 10000 | F20: 120 | G20: 0.023 | H20: 1348000
A21: 문태진 | B21: 2019-12-04 | C21: 청약저축 | D21: 여의도 | E21: 120000 | F21: 120 | G21: 0.028 | H21: 16635000
A22: 이현애 | B22: 2019-02-26 | C22: 청약예금 | D22: 합정 | E22: 250000 | F22: 120 | G22: 0.028 | H22: 34656000
A23: 조남수 | B23: 2018-12-09 | C23: 정기적금 | D23: 명동 | E23: 70000 | F23: 120 | G23: 0.02 | H23: 9291000
A24: 정만호 | B24: 2019-08-22 | C24: 청약저축 | D24: 여의도 | E24: 50000 | F24: 120 | G24: 0.033 | H24: 7098000

Sheet 피벗테이블
B2: 제품코드 | C2: 분류 | D2: 브랜드 | E2: 가격 | F2: 제조년도 | G2: 판매량
B3: C1393-322 | C3: 휴대용 | D3: 퀴디 | E3: 587000 | F3: 2012 | G3: 11
B4: C1933-931 | C4: 휴대용 | D4: 퀴디 | E4: 640000 | F4: 2012 | G4: 4
B5: C1333-321 | C5: 휴대용 | D5: 스토키 | E5: 654000 | F5: 2013 | G5: 1
B6: E1333-333 | C6: 휴대용 | D6: 스토키 | E6: 695000 | F6: 2011 | G6: 8
B7: B1333-319 | C7: 휴대용 | D7: 스토키 | E7: 750000 | F7: 2013 | G7: 8
B8: C1993-337 | C8: 휴대용 | D8: 퀴디 | E8: 793000 | F8: 2012 | G8: 6
B9: D1333-339 | C9: 휴대용 | D9: 스토키 | E9: 835000 | F9: 2011 | G9: 18
B10: D1993-325 | C10: 절충형 | D10: 퀴디 | E10: 853000 | F10: 2013 | G10: 4
B11: C1333-317 | C11: 휴대용 | D11: 스토키 | E11: 890000 | F11: 2013 | G11: 1
B12: E1333-314 | C12: 휴대용 | D12: 스토키 | E12: 890000 | F12: 2011 | G12: 8
B13: D1993-318 | C13: 절충형 | D13: 퀴디 | E13: 938000 | F13: 2012 | G13: 4
B14: D1993-316 | C14: 절충형 | D14: 퀴디 | E14: 956000 | F14: 2012 | G14: 14
B15: D1333-323 | C15: 절충형 | D15: 스토키 | E15: 995000 | F15: 2011 | G15: 4

Sheet 시나리오관리자
A1: 아래 표에서 환율[G19]이 다음과 같이 변동되는 경우 총판매액 합계[G17]의 변동 시나리오를 작성하시오.
A2: ▶ 셀이름 정의 : [G17] 셀은 ‘총판매액합계’, [G19] 셀은 ‘환율’로 정의하시오.
A3: ▶ 시나리오1 : 시나리오 이름은 ‘환율증가’, 환율을 1250 으로 설정하시오.
A4: ▶ 시나리오2 : 시나리오 이름은 ‘환율감소’, 환율을 1050 으로 설정하시오.
A5: ▶ 시나리오 요약 시트는 ‘시나리오관리자’ 시트의 바로 앞에 위치시키시오.
A7: 수입과자 판매 현황
A8: 과자명 | B8: 현지가격(달러) | C8: 수입량 | D8: 수입가격(원) | E8: 판매가격(원) | F8: 판매량 | G8: 총판매액
A9: 레몬웨하스 | B9: 1.8 | C9: 15000 | D9: =ROUND(B9*$G$19+(B9*$G$19*25%),-2) -> 2600 | E9: =ROUND(D9+D9*30%,-2) -> 3400 | F9: 11352 | G9: =E9*F9 -> 38596800
A10: 피넛비스켓 | B10: 2.4 | C10: 12000 | D10: 3500 | E10: 4600 | F10: 10248 | G10: 47140800
A11: 스피드칩 | B11: 3.5 | C11: 10000 | D11: 5000 | E11: 6500 | F11: 9348 | G11: 60762000
A12: 키즈옹 | B12: 1.7 | C12: 13500 | D12: 2400 | E12: 3100 | F12: 12354 | G12: 38297400
A13: 스위트칩 | B13: 2.5 | C13: 12000 | D13: 3600 | E13: 4700 | F13: 9758 | G13: 45862600
A14: 치즈팡 | B14: 2.9 | C14: 11000 | D14: 4200 | E14: 5500 | F14: 8465 | G14: 46557500
A15: 다크초코칩 | B15: 2.4 | C15: 12000 | D15: 3500 | E15: 4600 | F15: 11235 | G15: 51681000
A16: 러브롤링 | B16: 2.7 | C16: 13000 | D16: 3900 | E16: 5100 | F16: 12397 | G16: 63224700
A17: 합계 | G17: =SUM(G9:G16) -> 392122800
F19: 환율 | G19: 1150

Sheet 목표값찾기
A1: ‘대리점별 판매 현황’ 표에서 최저값인 최은주의 목표달성률(E11)이 85% 가 되려면
A2: 판매액(D11)이 얼마가 되어야 하 는지 목표값 찾기 기능을 이용하여 계산하시오.
A4: 대리점별 판매 현황
A6: 대리점 | B6: 담당자 | C6: 목표액 | D6: 판매액 | E6: 목표달성률
A7: 서울 | B7: 이미영 | C7: 12000000 | D7: 10500000 | E7: =D7/C7 -> 0.875
A8: 경기 | B8: 김정훈 | C8: 15000000 | D8: 13240000 | E8: 0.8826666667
A9: 인천 | B9: 최은정 | C9: 10000000 | D9: 8800000 | E9: 0.88
A10: 대전 | B10: 한성호 | C10: 12000000 | D10: 10420000 | E10: 0.8683333333
A11: 천안 | B11: 최은주 | C11: 15000000 | D11: 11250000 | E11: 0.75
A12: 부산 | B12: 남성훈 | C12: 12000000 | D12: 10800000 | E12: 0.9
A13: 광주 | B13: 장서연 | C13: 14000000 | D13: 12700000 | E13: 0.9071428571
A14: 원주 | B14: 이민준 | C14: 13000000 | D14: 10540000 | E14: 0.8107692308
A15: 목포 | B15: 김민서 | C15: 15000000 | D15: 12800000 | E15: 0.8533333333
A16: 울산 | B16: 이지훈 | C16: 12000000 | D16: 11500000 | E16: 0.9583333333

Sheet 데이터표
B1: 운동화 판매현황 표는 '생산량(C7)'과 '판매량(C8)'을 이용하여 '판매율(C10)'을 계산한 것이다.
B2: [데이터표] 기능을 이용하여 판매량의 변동에 따른 판매율의 변화를 [표1]영역에 계산하시오.
B5: 운동화 판매 현황 | E5: [표1]
B6: 상품명 | C6: 에어스프링 | E6: 판매량 | F6: 판매율
B7: 생산량 | C7: 20000
B8: 판매량 | C8: 16258 | E8: 12000
B9: 재고량 | C9: =C7-C8 -> 3742 | E9: 14000
B10: 판매율 | C10: =C8/C7 -> 0.8129 | E10: 16000
E11: 18000
E12: 20000

Sheet 데이터통합
A1: [표1] 안산시 판매현황 | F1: [표2] 수원시 판매현황
A2: 제품코드 | B2: 단가 | C2: 판매량 | D2: 판매금액 | F2: 제품코드 | G2: 단가 | H2: 판매량 | I2: 판매금액
A3: A-001 | B3: 10000 | C3: 120 | D3: =B3*C3 -> 1200000 | F3: A-001 | G3: 10000 | H3: 84 | I3: =G3*H3 -> 840000
A4: A-002 | B4: 15000 | C4: 83 | D4: 1245000 | F4: A-002 | G4: 15000 | H4: 111 | I4: 1665000
A5: A-003 | B5: 18000 | C5: 73 | D5: 1314000 | F5: A-003 | G5: 18000 | H5: 48 | I5: 864000
A6: A-004 | B6: 20000 | C6: 52 | D6: 1040000 | F6: A-004 | G6: 20000 | H6: 93 | I6: 1860000
A7: A-005 | B7: 16000 | C7: 48 | D7: 768000 | F7: A-005 | G7: 16000 | H7: 27 | I7: 432000
A8: A-006 | B8: 22000 | C8: 93 | D8: 2046000 | F8: A-006 | G8: 22000 | H8: 86 | I8: 1892000
A9: A-007 | B9: 24000 | C9: 27 | D9: 648000 | F9: A-007 | G9: 24000 | H9: 57 | I9: 1368000
A10: A-008 | B10: 25000 | C10: 86 | D10: 2150000 | F10: A-008 | G10: 25000 | H10: 23 | I10: 575000
A11: A-009 | B11: 27000 | C11: 43 | D11: 1161000 | F11: A-009 | G11: 27000 | H11: 24 | I11: 648000
A13: [표3] 안양시 판매현황 | F13: [표4] 경기지역 총판매현황 | J13: 각 지점의 판매현황을
A14: 제품코드 | B14: 단가 | C14: 판매량 | D14: 판매금액 | F14: 제품코드 | G14: 판매량 | H14: 판매금액 | J14: 해당하는 제품코드별로
A15: A-001 | B15: 10000 | C15: 99 | D15: =B15*C15 -> 990000 | J15: '판매량' 과 '판매금액'의 평균을
A16: A-002 | B16: 15000 | C16: 114 | D16: 1710000 | J16: [표4] 의 영역에 계산하시오.
A17: A-003 | B17: 18000 | C17: 101 | D17: 1818000
A18: A-004 | B18: 20000 | C18: 98 | D18: 1960000
A19: A-005 | B19: 16000 | C19: 86 | D19: 1376000
A20: A-006 | B20: 22000 | C20: 52 | D20: 1144000
A21: A-007 | B21: 24000 | C21: 76 | D21: 1824000 | F21: *필요 시 와일드카드( * , ? ) 사용 가능
A22: A-008 | B22: 25000 | C22: 68 | D22: 1700000
A23: A-009 | B23: 27000 | C23: 55 | D23: 1485000

Sheet 2급 고급필터
A1: 문제: 판매금액이 50000원 이상이고, 분류가 '컴퓨터' 이거나 '사회과학'인 '판매일, 분류, 도서번호, 수량, 판매금액' 만을
A2: 결과로 표시하시오.
A3: 조건은 A22:C24 영역에 작성하시오.
A4: 결과는 A26셀 부터 표시하시오.
A6: 판매일 | B6: 고객코드 | C6: 분류 | D6: 도서번호 | E6: 수량 | F6: 정가 | G6: 판매금액
A7: 2017-02-15 | B7: O020 | C7: 사회과학 | D7: S10-152 | E7: 1 | F7: 17600 | G7: 15840
A8: 2017-01-01 | B8: I001 | C8: 컴퓨터 | D8: C10-519 | E8: 10 | F8: 19800 | G8: 188100
A9: 2017-01-01 | B9: O025 | C9: 소설 | D9: J10-441 | E9: 8 | F9: 7000 | G9: 53200
A10: 2017-01-12 | B10: O003 | C10: 취미/레저 | D10: G10-152 | E10: 5 | F10: 9900 | G10: 47025
A11: 2017-01-22 | B11: O015 | C11: 소설 | D11: J20-541 | E11: 7 | F11: 8800 | G11: 58520
A12: 2017-01-26 | B12: O009 | C12: 컴퓨터 | D12: C10-120 | E12: 2 | F12: 15000 | G12: 28500
A13: 2017-02-03 | B13: O050 | C13: 컴퓨터 | D13: C20-250 | E13: 8 | F13: 9900 | G13: 75240
A14: 2017-02-05 | B14: I007 | C14: 사회과학 | D14: S30-414 | E14: 2 | F14: 19800 | G14: 35640
A15: 2017-02-15 | B15: I006 | C15: 사회과학 | D15: S10-152 | E15: 3 | F15: 9900 | G15: 26730
A16: 2017-03-02 | B16: I025 | C16: 취미/레저 | D16: G20-512 | E16: 3 | F16: 12000 | G16: 30600
A17: 2017-03-05 | B17: O050 | C17: 소설 | D17: J10-250 | E17: 5 | F17: 19800 | G17: 94050
A18: 2017-03-06 | B18: O028 | C18: 취미/레저 | D18: G30-474 | E18: 4 | F18: 11000 | G18: 41800
A19: 2017-03-15 | B19: I006 | C19: 사회과학 | D19: S30-541 | E19: 6 | F19: 19800 | G19: 106920
A20: 2017-03-17 | B20: I008 | C20: 취미/레저 | D20: G40-552 | E20: 1 | F20: 10000 | G20: 8500

Sheet 1급 고급필터
A1: 문제: 판매금액이 평균 이상이고, 분류가 '컴퓨터' 이거나 '사회과학'인 '판매일, 분류, 도서번호, 수량, 판매금액' 만을
A2: 결과로 표시하시오.
A3: 조건은 A22:C24 영역에 작성하시오. (and, or, average 함수 사용)
A4: '결과는 A26셀 부터 표시하시오.
A6: 판매일 | B6: 고객코드 | C6: 분류 | D6: 도서번호 | E6: 수량 | F6: 정가 | G6: 판매금액
A7: 2017-02-15 | B7: O020 | C7: 사회과학 | D7: S10-152 | E7: 1 | F7: 17600 | G7: 15840
A8: 2017-01-01 | B8: I001 | C8: 컴퓨터 | D8: C10-519 | E8: 10 | F8: 19800 | G8: 188100
A9: 2017-01-01 | B9: O025 | C9: 소설 | D9: J10-441 | E9: 8 | F9: 7000 | G9: 53200
A10: 2017-01-12 | B10: O003 | C10: 취미/레저 | D10: G10-152 | E10: 5 | F10: 9900 | G10: 47025
A11: 2017-01-22 | B11: O015 | C11: 소설 | D11: J20-541 | E11: 7 | F11: 8800 | G11: 58520
A12: 2017-01-26 | B12: O009 | C12: 컴퓨터 | D12: C10-120 | E12: 2 | F12: 15000 | G12: 28500
A13: 2017-02-03 | B13: O050 | C13: 컴퓨터 | D13: C20-250 | E13: 8 | F13: 9900 | G13: 75240
A14: 2017-02-05 | B14: I007 | C14: 사회과학 | D14: S30-414 | E14: 2 | F14: 19800 | G14: 35640
A15: 2017-02-15 | B15: I006 | C15: 사회과학 | D15: S10-152 | E15: 3 | F15: 9900 | G15: 26730
A16: 2017-03-02 | B16: I025 | C16: 취미/레저 | D16: G20-512 | E16: 3 | F16: 12000 | G16: 30600
A17: 2017-03-05 | B17: O050 | C17: 소설 | D17: J10-250 | E17: 5 | F17: 19800 | G17: 94050
A18: 2017-03-06 | B18: O028 | C18: 취미/레저 | D18: G30-474 | E18: 4 | F18: 11000 | G18: 41800
A19: 2017-03-15 | B19: I006 | C19: 사회과학 | D19: S30-541 | E19: 6 | F19: 19800 | G19: 106920
A20: 2017-03-17 | B20: I008 | C20: 취미/레저 | D20: G40-552 | E20: 1 | F20: 10000 | G20: 8500
